bitfinex-derivatives/quotes_SOLF0:USTF0_20241008
["timestamp","ask_amount","ask_price","bid_price","bid_amount"]
[1728397516409,3.4861,143.48,143.44,2.6379]
[1728397517422,18.38,143.5,143.46,3.4864]
[1728397518325,21.8657,143.5,143.46,3.4864]
[1728397518626,0.12502,143.51,143.46,3.4864]
[1728397518922,18.38,143.5,143.44,2.6379]
[1728397519120,18.38,143.48,143.44,2.6379]
[1728397519627,3.4863,143.47,143.44,2.6379]
[1728397520120,21.81706615,143.48,143.39,24.66502]
[1728397520622,3.4866,143.46,143.43,3.4871]
[1728397520815,21.81706615,143.48,143.43,3.4871]
[1728397521224,6.92306615,143.48,143.44,3.4867]
[1728397521522,21.81706615,143.48,143.39,24.66502]
[1728397521714,3.4865,143.46,143.43,3.4872]
[1728397521921,21.81706615,143.48,143.43,3.4872]
[1728397522830,6.16,143.49,143.41,18.38]
[1728397523016,3.41894102,143.48,143.42,2.8323]
[1728397523620,3.4864,143.47,143.44,3.4869]
[1728397524127,3.4864,143.47,143.42,2.8323]
[1728397524325,3.4864,143.47,143.44,3.4869]
[1728397525623,6.16,143.49,143.42,2.8323]
[1728397525923,0.12502,143.51,143.43,18.38]
[1728397526230,6.28502,143.51,143.43,19.7679]
[1728397526626,3.4855,143.5,143.47,3.4861]
[1728397526825,6.28502,143.51,143.47,3.4861]
[1728397527025,3.4859,143.49,143.46,3.4864]
[1728397527329,18.38,143.5,143.43,7.5479]
[1728397527529,3.4861,143.48,143.45,3.4866]
[1728397527824,18.38,143.5,143.43,7.5479]
[1728397528232,3.4858,143.49,143.46,3.4863]
[1728397528433,6.28502,143.51,143.43,25.9279]
[1728397528826,3.4859,143.49,143.46,3.4863]
[1728397529136,6.28502,143.51,143.43,25.9279]
[1728397529434,3.4856,143.5,143.47,3.4861]
[1728397529627,6.28502,143.51,143.47,3.4861]
[1728397529830,6.28502,143.51,143.43,25.9279]
[1728397530030,3.4856,143.5,143.47,3.4861]
[1728397530227,3.4856,143.5,143.43,25.9279]
[1728397530631,3.4856,143.5,143.46,3.4863]
[1728397531130,18.38,143.5,143.43,7.5479]
[1728397531325,18.38,143.47,143.42,1.3946]
[1728397531529,18.38,143.47,143.39,0.12502]
[1728397531530,3.40207977,143.46,143.39,0.12502]
[1728397531835,3.4871,143.44,143.41,3.4875]
[1728397532431,6.14,143.47,143.39,18.50502]
[1728397532732,6.14,143.47,143.4,7.37324382]
[1728397532925,6.14,143.47,143.39,0.12502]
[1728397532926,18.38,143.42,143.39,0.12502]
[1728397533530,3.4875,143.42,143.39,0.12502]
[1728397534130,9.6273,143.43,143.4,3.4878]
[1728397534429,6.14,143.43,143.4,3.4878]
[1728397535232,9.6274,143.43,143.39,0.12502]
[1728397535431,25.54,143.46,143.41,3.4877]
[1728397535831,3.4869,143.45,143.41,3.4877]
[1728397536133,25.54,143.46,143.41,3.4877]
[1728397536337,25.54,143.46,143.39,0.12502]
[1728397536839,3.4876,143.42,143.39,0.12502]
[1728397537132,18.38,143.44,143.39,0.12502]
[1728397537640,18.38,143.44,143.4,3.4879]
[1728397538130,3.4874,143.43,143.4,3.4879]
[1728397538329,18.38,143.44,143.4,3.4879]
[1728397538734,3.4874,143.43,143.4,3.4879]
[1728397539536,3.4875,143.42,143.39,3.61312]
[1728397540532,3.4875,143.42,143.4,3.4879]
[1728397541044,18.38,143.44,143.39,0.12502]
[1728397541045,3.4871,143.44,143.39,0.12502]
[1728397541242,3.4871,143.44,143.4,3.4878]
[1728397541535,3.4871,143.44,143.39,0.12502]
[1728397541726,9.6268,143.45,143.42,3.4873]
[1728397542238,6.14,143.45,143.42,3.4873]
[1728397542831,3.4872,143.43,143.41,3.4876]
[1728397543034,6.14,143.45,143.39,0.12502]
[1728397543035,18.38,143.44,143.39,0.12502]
[1728397543337,3.4877,143.41,143.39,0.12502]
[1728397543531,18.38,143.44,143.39,0.12502]
[1728397544244,6.14,143.45,143.39,0.12502]
[1728397544444,3.4871,143.44,143.39,0.12502]
[1728397544954,9.6268,143.45,143.42,3.4873]
[1728397545546,22.8666,143.46,143.44,3.4869]
[1728397545843,22.8666,143.46,143.39,0.12502]
[1728397545844,19.38,143.46,143.39,6.26502]
[1728397546045,19.38,143.46,143.4,5.96884152]
[1728397546338,6.14,143.49,143.41,5.96848737]
[1728397546544,24.52,143.52,143.43,18.38]
[1728397546749,3.61042,143.51,143.45,18.38]
[1728397547043,0.12502,143.51,143.45,18.38]
[1728397547636,0.12502,143.51,143.46,5.96553009]
[1728397547836,0.12502,143.51,143.45,18.38]
[1728397548038,3.4855,143.5,143.47,3.4861]
[1728397548247,0.12502,143.51,143.45,18.38]
[1728397548640,3.4855,143.5,143.47,3.4861]
[1728397549138,0.12502,143.51,143.44,2.7612]
[1728397549335,3.61052,143.51,143.47,3.4861]
[1728397549540,3.61052,143.51,143.44,2.7612]
[1728397549742,3.61052,143.51,143.45,5.96318322]
[1728397549941,3.61052,143.51,143.47,3.486]
[1728397550548,3.61052,143.51,143.48,3.4859]
[1728397551148,3.4856,143.5,143.47,3.4861]
[1728397551344,18.38,143.5,143.44,2.7612]
[1728397551738,18.38,143.48,143.42,6.14]
[1728397551944,21.90946563,143.48,143.42,6.14]
[1728397552249,21.90946563,143.48,143.43,3.487]
[1728397552250,3.4867,143.46,143.43,3.487]
[1728397552443,3.4867,143.46,143.42,6.14]
[1728397552744,3.4863,143.47,143.44,3.4869]
[1728397552949,6.14,143.49,143.42,6.14]
[1728397553141,6.14,143.49,143.43,24.34286985]
[1728397553348,3.4858,143.49,143.46,3.4864]
[1728397553551,0.12502,143.51,143.44,6.14]
[1728397553740,18.38,143.5,143.44,6.14]
[1728397553945,3.4863,143.47,143.44,9.6268]
[1728397554740,3.4863,143.47,143.44,6.14]
[1728397554943,3.4866,143.46,143.44,6.14]
[1728397555139,3.4866,143.46,143.41,6.14]
[1728397555650,3.4866,143.46,143.43,3.487]
[1728397555855,3.487,143.44,143.4,10.3008]
[1728397556353,3.487,143.44,143.41,3.4876]
[1728397556946,18.38,143.46,143.4,6.326]
[1728397556947,3.4872,143.43,143.4,6.326]
[1728397557152,18.38,143.44,143.39,0.12502]
[1728397557455,3.4873,143.43,143.4,3.4878]
[1728397559459,3.4879,143.4,143.39,0.12502]
[1728397560563,3.4877,143.41,143.39,0.12502]
[1728397560749,18.38,143.42,143.39,0.12502]
[1728397561153,3.4879,143.4,143.39,0.12502]
[1728397561352,6.92104733,143.4,143.39,0.12502]
[1728397561559,3.4879,143.4,143.39,0.12502]
[1728397561855,18.38,143.42,143.39,0.12502]
[1728397562064,24.52,143.44,143.39,0.12502]
[1728397562268,3.4878,143.41,143.39,0.12502]
[1728397562453,24.52,143.44,143.39,0.12502]
[1728397563151,18.38,143.46,143.39,0.12502]
[1728397563356,18.38,143.46,143.4,5.98022414]
[1728397563552,18.38,143.42,143.27,0.12502]
[1728397563758,18.38,143.39,143.34,5.98176593]
[1728397563962,18.38,143.39,143.31,3.49]
[1728397563963,3.4894,143.34,143.31,3.49]
[1728397564158,18.38,143.37,143.33,6.10714291]
[1728397564455,18.38,143.37,143.33,0.12502]
[1728397564657,6.14,143.38,143.33,0.12502]
[1728397564856,6.14,143.38,143.34,5.9818402]
[1728397565053,6.14,143.38,143.33,0.12502]
[1728397565255,3.4891,143.36,143.33,0.12502]
[1728397565759,3.4888,143.37,143.34,5.98140617]
[1728397565963,6.14,143.38,143.33,0.12502]
[1728397566265,6.14,143.38,143.34,5.98148194]
[1728397566564,6.14,143.38,143.33,0.12502]
[1728397566755,3.4887,143.37,143.34,5.98114888]
[1728397566958,6.14,143.38,143.33,0.12502]
[1728397567264,6.14,143.38,143.34,5.98162993]
[1728397567455,9.6285,143.38,143.35,3.489]
[1728397567654,6.14,143.38,143.33,0.12502]
[1728397567860,9.6281,143.4,143.37,3.4885]
[1728397568055,9.64516674,143.4,143.34,2.8183]
[1728397568258,9.64516674,143.4,143.35,5.98162235]
[1728397568563,39.05550537,143.4,143.36,5.98162235]
[1728397568763,39.05550537,143.4,143.35,5.98162235]
[1728397569062,3.4894,143.34,143.33,0.12502]
[1728397569850,6.14,143.35,143.27,1.56122]
[1728397569851,6.14,143.35,143.27,0.12502]
[1728397570068,6.14,143.35,143.28,5.98403346]
[1728397570069,29.5,143.33,143.28,5.98403346]
[1728397570254,29.5,143.33,143.29,5.98403346]
[1728397570457,3.4908,143.28,143.27,0.12502]
[1728397570757,3.4908,143.28,143.27,6.10824007]
[1728397571560,3.4908,143.28,143.27,0.12502]
[1728397571759,3.4908,143.28,143.27,6.10732123]
[1728397571959,3.4904,143.3,143.27,6.10732123]
[1728397572258,3.4904,143.3,143.27,3.61592]
[1728397572469,3.4906,143.29,143.27,0.12502]
[1728397572665,6.14,143.31,143.28,5.9819694]
[1728397572666,35.64,143.31,143.28,5.9819694]
[1728397572966,3.4908,143.28,143.27,0.12502]
[1728397573370,29.5,143.28,143.22,2.8005]
[1728397573565,6.14,143.27,143.22,2.8005]
[1728397574164,3.4921,143.23,143.21,0.12502]
[1728397574368,29.5,143.24,143.21,0.12502]
[1728397574564,6.14,143.23,143.21,0.12502]
[1728397575269,3.4923,143.22,143.21,0.12502]
[1728397577659,3.4917,143.25,143.21,0.12502]
[1728397577865,29.5,143.28,143.21,0.12502]
[1728397578164,6.14,143.27,143.23,3.492]
[1728397578365,6.14,143.27,143.21,0.12502]
[1728397578565,6.14,143.27,143.24,3.4917]
[1728397579065,9.6313,143.27,143.21,0.12502]
[1728397579670,6.14,143.27,143.21,0.12502]
[1728397580174,6.14,143.29,143.21,0.12502]
[1728397580379,6.14,143.31,143.22,6.14]
[1728397580675,6.14,143.31,143.23,8.62470486]
[1728397580868,0.12502,143.33,143.23,2.6792]
[1728397581070,0.12502,143.33,143.24,1.4267]
[1728397581876,0.12502,143.33,143.25,5.9433703]
[1728397582177,0.12502,143.33,143.26,6.14]
[1728397582668,3.4899,143.32,143.28,3.4908]
[1728397582863,29.62502,143.33,143.24,1.4267]
[1728397583171,3.61462,143.33,143.26,3.4912]
[1728397583365,3.61462,143.33,143.24,1.4267]
[1728397583570,0.12502,143.33,143.25,5.94208952]
[1728397583874,0.12502,143.33,143.26,5.94208952]
[1728397584172,0.12502,143.33,143.32,3.4899]
[1728397584363,3.4888,143.37,143.27,35.64]
[1728397584364,9.6288,143.37,143.27,35.64]
[1728397584563,6.14,143.37,143.28,5.94150163]
[1728397584768,6.14,143.37,143.35,3.4891]
[1728397585176,6.14,143.37,143.27,35.76502]
[1728397585380,6.14,143.37,143.28,5.94125062]
[1728397585574,6.14,143.37,143.29,5.94125062]
[1728397585876,6.14,143.37,143.3,2.7659]
[1728397586078,9.6287,143.37,143.34,3.4892]
[1728397587071,0.12502,143.39,143.3,2.7659]
[1728397587276,0.12502,143.39,143.31,6.14]
[1728397589270,0.12502,143.39,143.35,3.4889]
[1728397589981,0.12502,143.39,143.32,1.4441]
[1728397590473,29.5,143.37,143.32,1.4441]
[1728397591971,29.5,143.37,143.32,4.934]
[1728397591972,3.4893,143.35,143.32,4.934]
[1728397592782,3.489,143.36,143.33,3.4895]
[1728397593083,0.12502,143.39,143.32,1.4441]
[1728397593477,3.4886,143.38,143.34,3.4894]
[1728397593678,0.12502,143.39,143.34,3.4894]
[1728397593877,0.12502,143.39,143.32,1.4441]
[1728397594183,29.5,143.38,143.3,1.4422]
[1728397594389,29.5,143.35,143.3,1.4422]
[1728397594576,3.4895,143.34,143.3,1.4422]
[1728397594782,35.64,143.35,143.3,1.4422]
[1728397595086,3.4895,143.34,143.3,1.4422]
[1728397595287,35.64,143.35,143.3,1.4422]
[1728397595476,29.5,143.33,143.26,1.4252]
[1728397595683,3.4907,143.29,143.26,4.9164]
[1728397595874,3.51971621,143.3,143.24,1.4361]
[1728397596077,35.64,143.31,143.24,1.4361]
[1728397596290,32.9908,143.28,143.23,4.83]
[1728397596590,36.47143927,143.28,143.22,1.4542]
[1728397596781,32.9908,143.28,143.24,3.4918]
[1728397597882,3.4908,143.28,143.26,3.4913]
[1728397598082,3.4908,143.28,143.22,1.4542]
[1728397598486,3.4908,143.28,143.23,3.4919]
[1728397599087,3.4908,143.28,143.22,1.4542]
[1728397599388,3.4908,143.28,143.24,3.4918]
[1728397600002,32.9908,143.28,143.22,1.4542]
[1728397600194,3.4917,143.25,143.22,1.4542]
[1728397600489,29.5,143.26,143.21,0.12502]
[1728397600893,3.4923,143.22,143.21,0.12502]
[1728397601083,9.6323,143.22,143.21,0.12502]
[1728397601278,3.4935,143.17,143.08,2.738]
[1728397601492,3.4935,143.17,143.09,1.54512]
[1728397601691,6.14,143.18,143.09,1.54512]
[1728397602287,6.14,143.18,143.15,3.61882]
[1728397602489,3.4934,143.18,143.15,3.61882]
[1728397602787,6.14,143.18,143.15,0.12502]
[1728397603187,3.4938,143.16,143.15,0.12502]
[1728397603582,3.4936,143.17,143.15,0.12502]
[1728397604096,9.6333,143.18,143.15,0.12502]
[1728397604585,9.6333,143.18,143.15,3.61902]
[1728397604892,6.14,143.18,143.15,0.12502]
[1728397605194,6.14,143.18,143.15,3.61882]
[1728397605693,35.64,143.18,143.15,0.12502]
[1728397606486,3.4938,143.16,143.15,0.12502]
[1728397608394,29.5,143.16,143.09,0.12502]
[1728397608590,3.4946,143.13,143.09,0.12502]
[1728397608889,6.14,143.14,143.09,0.12502]
[1728397609797,6.14,143.14,143.12,3.4946]
[1728397610291,3.47692072,143.2,143.13,3.4945]
[1728397610292,6.14,143.15,143.13,3.4945]
[1728397610494,29.5,143.18,143.13,3.4945]
[1728397610691,6.14,143.17,143.13,3.4945]
[1728397611493,3.4938,143.16,143.13,3.4945]
[1728397612499,3.4941,143.15,143.12,3.4946]
[1728397612800,6.14,143.16,143.09,0.12502]
[1728397613000,3.4941,143.15,143.12,3.4946]
[1728397613194,6.14,143.16,143.09,0.12502]
[1728397613602,9.6338,143.16,143.13,3.4944]
[1728397615497,3.4941,143.15,143.12,3.4947]
[1728397615697,6.14,143.16,143.09,0.12502]
[1728397616203,3.4944,143.14,143.09,0.12502]
[1728397616398,6.14,143.16,143.09,0.12502]
[1728397616601,3.4944,143.14,143.11,3.4949]
[1728397617007,6.14,143.16,143.09,0.12502]
[1728397617705,29.5,143.15,143.09,0.12502]
[1728397618509,3.4949,143.12,143.09,3.62042]
[1728397618699,6.14,143.12,143.09,0.12502]
[1728397619099,6.14,143.12,143.1,3.495]
[1728397619311,32.96830312,143.18,143.09,0.12502]
[1728397619616,3.4941,143.15,143.1,3.495]
[1728397619818,6.14,143.17,143.09,0.12502]
[1728397620315,6.14,143.16,143.09,0.12502]
[1728397620907,9.6338,143.16,143.13,3.4944]
[1728397621314,9.6338,143.16,143.12,3.4947]
[1728397621315,3.4942,143.15,143.12,3.4947]
[1728397621513,6.14,143.16,143.09,0.12502]
[1728397621820,9.6338,143.16,143.11,3.495]
[1728397622018,9.6338,143.16,143.09,0.12502]
[1728397622318,6.14,143.16,143.09,0.12502]
[1728397623024,18.46,143.15,143.09,0.12502]
[1728397623222,18.46,143.13,143.09,0.12502]
[1728397623420,3.4949,143.12,143.09,3.62042]
[1728397623621,9.6349,143.12,143.09,3.62042]
[1728397624028,6.14,143.12,143.09,0.12502]
[1728397624225,18.46,143.11,143.09,0.12502]
[1728397624530,29.55,143.1,143.03,0.12502]
[1728397624728,6.14,143.12,143.03,0.12502]
[1728397624729,29.55,143.05,143.03,0.12502]
[1728397624924,35.69,143.05,143.03,0.12502]
[1728397625334,35.69,143.05,142.99,3.4979]
[1728397625335,3.497,143.03,142.99,3.4979]
[1728397625529,35.69,143.05,142.98,1.3478]
[1728397625827,29.55,143.07,142.98,1.3478]
[1728397626131,6.14,143.07,142.98,37.0378]
[1728397626326,6.14,143.07,143.05,3.4963]
[1728397626527,6.14,143.07,142.98,37.0378]
[1728397626922,9.6362,143.07,142.98,37.0378]
[1728397627727,6.14,143.07,142.98,37.0378]
[1728397627932,29.55,143.07,142.98,1.3478]
[1728397628226,3.497,143.03,142.98,1.3478]
[1728397628426,29.55,143.05,142.98,1.3478]
[1728397628832,3.4975,143.01,142.98,1.3478]
[1728397629423,6.14,143.02,142.98,1.3478]
[1728397629624,6.14,143.02,143.0,3.4975]
[1728397629847,6.14,143.02,142.98,1.3478]
[1728397630167,7.14,143.06,143.03,3.4968]
[1728397630356,7.14,143.06,142.98,1.3478]
[1728397630759,6.14,143.06,142.98,1.3478]
[1728397631358,6.14,143.06,143.02,3.4971]
[1728397631552,9.6364,143.06,143.02,3.4971]
[1728397631754,6.14,143.06,143.01,3.4972]
[1728397632673,3.4966,143.05,143.01,3.4972]
[1728397632862,3.4966,143.05,143.02,3.497]
[1728397633559,9.6362,143.06,142.98,1.3478]
[1728397633762,6.14,143.06,142.98,1.3478]
[1728397634157,35.69,143.07,142.98,1.3478]
[1728397634355,39.1861,143.07,143.03,3.4968]
[1728397634565,35.69,143.07,142.98,1.3478]
[1728397634961,3.4963,143.06,143.0,3.4975]
[1728397635264,35.69,143.07,143.01,1.3767]
[1728397635460,6.14,143.07,143.01,1.3767]
[1728397635660,29.67502,143.09,143.01,1.3767]
[1728397635849,6.14,143.08,143.01,1.3767]
[1728397636049,3.4962,143.07,143.03,3.4967]
[1728397636238,6.14,143.08,143.01,1.3767]
[1728397637173,0.12502,143.09,143.01,37.0667]
[1728397637364,0.12502,143.09,143.08,3.4957]
[1728397637733,0.12502,143.09,143.03,29.55]
[1728397637734,6.14,143.13,143.05,6.14]
[1728397638038,9.6339,143.16,143.12,3.4947]
[1728397638235,6.14,143.16,143.06,1.3796]
[1728397638439,6.14,143.16,143.13,3.4945]
[1728397638626,6.14,143.16,143.06,1.3796]
[1728397638829,3.495,143.11,143.07,3.4958]
[1728397639031,29.55,143.1,143.06,1.3796]
[1728397639942,33.07576214,143.1,143.03,0.12502]
[1728397640134,3.4956,143.09,143.05,3.4964]
[1728397640448,3.4956,143.09,143.03,0.12502]
[1728397641538,3.4956,143.09,143.05,3.4963]
[1728397642044,3.4958,143.08,143.04,3.4966]
[1728397642342,33.07576214,143.1,143.03,0.12502]
[1728397642738,33.07576214,143.1,143.05,3.4963]
[1728397642739,3.4956,143.09,143.05,3.4963]
[1728397643239,29.55,143.06,143.03,0.12502]
[1728397643543,33.0463,143.06,143.03,0.12502]
[1728397643738,29.55,143.06,143.03,0.12502]
[1728397643964,29.55,143.06,143.03,3.62182]
[1728397644339,29.55,143.06,143.03,0.12502]
[1728397644539,33.0464,143.06,143.03,3.62192]
[1728397645547,29.55,143.06,143.03,0.12502]
[1728397646740,3.4965,143.05,143.03,0.12502]
[1728397646937,6.14,143.04,143.03,0.12502]
[1728397647744,35.69,143.04,142.98,1.3871]
[1728397647942,35.69,143.04,143.0,3.4976]
[1728397648451,3.4971,143.03,143.0,3.4976]
[1728397649038,9.6368,143.04,143.01,3.4972]
[1728397649244,6.14,143.04,142.98,1.3871]
[1728397649647,6.14,143.04,142.99,3.4977]
[1728397649945,6.14,143.04,142.98,1.3871]
[1728397650164,3.4973,143.02,142.99,3.4977]
[1728397650453,6.14,143.04,142.98,1.3871]
[1728397650849,6.14,143.04,143.02,3.4971]
[1728397651150,29.55,143.06,142.98,1.3871]
[1728397651349,29.55,143.06,143.03,3.4969]
[1728397651350,6.14,143.05,143.03,3.4969]
[1728397652752,6.14,143.05,143.04,3.4967]
[1728397654154,6.14,143.05,143.03,3.4968]
[1728397654346,6.14,143.05,142.98,7.5271]
[1728397654549,6.14,143.05,142.98,1.3871]
[1728397655143,6.14,143.05,143.01,3.4974]
[1728397655748,3.4968,143.04,143.01,3.4974]
[1728397655949,6.14,143.05,142.97,0.12502]
[1728397656145,29.55,143.02,142.97,0.12502]
[1728397656350,3.4981,142.99,142.97,0.12502]
[1728397656559,6.14,143.01,142.97,3.62342]
[1728397656855,3.4978,143.0,142.97,3.62342]
[1728397657045,6.96373948,143.0,142.97,3.62342]
[1728397658859,3.4979,142.99,142.97,0.12502]
[1728397659066,29.55,142.99,142.97,0.12502]
[1728397659270,3.51378287,142.98,142.92,0.12518]
[1728397659471,29.55,142.96,142.92,3.62478]
[1728397659652,29.55,142.96,142.92,0.12518]
[1728397659958,33.0488,142.96,142.93,3.4994]
[1728397660264,3.50258913,142.95,142.92,0.12518]
[1728397660656,6.14,142.97,142.92,0.12518]
[1728397660855,9.69925741,142.97,142.92,0.12518]
[1728397661062,6.14,142.98,142.97,3.4984]
[1728397661357,6.14,142.98,142.92,0.12518]
[1728397661555,33.0475,143.01,142.98,3.498]
[1728397661757,33.0475,143.01,142.92,0.12518]
[1728397661758,29.67502,143.03,142.93,1.4414]
[1728397661957,6.14,143.02,142.93,1.4414]
[1728397662160,9.6374,143.02,142.96,3.4986]
[1728397662361,29.55,143.01,142.92,0.12518]
[1728397662565,3.54740877,143.0,142.92,0.12518]
[1728397662777,29.55,143.01,142.92,0.12518]
[1728397663855,29.55,143.01,142.98,3.4979]
[1728397664059,6.14,143.02,142.93,12.39414501]
[1728397664257,6.26502,143.03,142.93,38.5003]
[1728397664453,6.26502,143.03,143.02,3.4972]
[1728397666169,6.26502,143.03,142.94,6.9982]
[1728397666465,6.26502,143.03,142.95,5.96179655]
[1728397666670,6.26502,143.03,142.96,5.96179655]
[1728397666866,9.76192,143.03,143.0,3.4975]
[1728397667166,6.26502,143.03,142.93,38.5003]
[1728397667360,6.26502,143.03,142.94,5.9668223]
[1728397667564,3.4975,143.01,142.95,5.9668223]
[1728397667859,3.4975,143.01,142.93,38.5003]
[1728397668058,9.76202,143.03,142.94,5.9669939]
[1728397668263,0.12502,143.03,142.95,5.9669939]
[1728397668471,0.12502,143.03,142.96,1.4173]
[1728397668672,0.12502,143.03,142.97,12.1069939]
[1728397668869,0.12502,143.03,142.97,6.14]
[1728397669272,0.12502,143.03,142.98,5.97524718]
[1728397669571,0.12502,143.03,142.97,6.14]
[1728397669760,0.12502,143.03,142.98,5.97534167]
[1728397669957,0.12502,143.03,142.97,6.14]
[1728397670161,0.12502,143.03,143.02,3.4972]
[1728397674981,0.12502,143.09,143.0,18.47]
[1728397675279,0.12502,143.09,143.08,3.4957]
[1728397677973,3.4963,143.06,143.03,3.4968]
[1728397678173,18.47,143.06,142.99,6.14]
[1728397678470,29.54,143.08,143.0,5.98728946]
[1728397678775,29.54,143.08,142.98,2.8215]
[1728397678776,29.54,143.08,143.01,5.98728946]
[1728397678962,29.54,143.06,142.98,8.9615]
[1728397679192,29.54,143.06,142.99,5.98854955]
[1728397679373,29.54,143.06,143.0,5.98854955]
[1728397679567,29.54,143.06,143.01,3.4972]
[1728397679772,29.54,143.06,142.98,8.9615]
[1728397679972,29.54,143.06,142.99,5.98955836]
[1728397679973,6.14,143.05,142.99,5.98955836]
[1728397680173,3.4968,143.04,143.01,3.4972]
[1728397680672,3.4968,143.04,143.01,3.4974]
[1728397681176,29.54,143.03,142.97,0.12502]
[1728397681373,29.54,143.03,142.97,3.62332]
[1728397681973,3.4976,143.01,142.98,3.4982]
[1728397682405,3.52958603,143.02,142.97,0.12502]
[1728397682584,35.68,143.01,142.97,0.12502]
[1728397682771,39.18930306,143.01,142.97,0.12502]
[1728397683072,3.4982,142.98,142.97,0.12502]
[1728397683376,3.4982,142.98,142.91,0.12502]
[1728397683377,29.54,142.98,142.91,0.12502]
[1728397683569,29.54,142.98,142.93,5.99583867]
[1728397683782,29.54,142.98,142.91,0.12502]
[1728397683783,29.54,142.96,142.91,0.12502]
[1728397684380,6.14,142.97,142.91,0.12502]
[1728397684381,29.54,142.94,142.91,0.12502]
[1728397684685,29.54,142.92,142.85,0.12502]
[1728397684880,6.14,142.91,142.85,0.12502]
[1728397685086,3.5009,142.87,142.86,5.99766133]
[1728397685285,29.54,142.89,142.86,5.99766133]
[1728397685494,9.59016712,142.91,142.85,0.12502]
[1728397686571,39.13016712,142.91,142.85,0.12502]
[1728397686879,35.68,142.91,142.86,5.99165604]
[1728397687079,35.68,142.91,142.85,0.12502]
[1728397687080,6.14,142.91,142.85,0.12502]
[1728397687284,6.14,142.91,142.86,5.98944538]
[1728397687583,35.68,142.91,142.85,0.12502]
[1728397687774,3.5005,142.89,142.85,3.62622]
[1728397687977,35.68,142.91,142.86,5.98952974]
[1728397688178,6.14,142.91,142.85,0.12502]
[1728397688484,6.14,142.91,142.86,5.98781235]
[1728397688687,35.68,142.91,142.85,0.12502]
[1728397689314,6.14,142.91,142.86,5.98793433]
[1728397689589,6.14,142.91,142.88,3.5005]
[1728397689776,6.14,142.91,142.85,0.12502]
[1728397689981,6.14,142.91,142.9,3.5001]
[1728397690179,6.14,142.94,142.9,3.5001]
[1728397690388,6.14,142.94,142.85,6.26502]
[1728397690589,9.6392,142.94,142.86,7.41680706]
[1728397690789,6.14,142.94,142.87,5.98660706]
[1728397690986,6.14,142.94,142.93,3.4994]
[1728397691394,6.14,142.96,142.87,32.3881]
[1728397691686,6.14,142.96,142.88,5.98757404]
[1728397691892,6.14,142.96,142.89,12.12757404]
[1728397692097,9.6388,142.96,142.92,3.4994]
[1728397692613,9.6388,142.96,142.89,6.14]
[1728397692902,9.6388,142.96,142.9,5.9887077]
[1728397693089,9.6388,142.96,142.91,5.98878404]
[1728397693282,9.6388,142.96,142.92,3.4995]
[1728397693485,9.6388,142.96,142.89,6.14]
[1728397693687,6.14,142.96,142.9,5.98918105]
[1728397693886,6.14,142.96,142.91,5.98918105]
[1728397694082,6.26502,142.97,142.89,6.14]
[1728397694287,6.26502,142.97,142.9,5.98882987]
[1728397694505,6.26502,142.97,142.89,6.14]